fUSD/lending_fUSD_20260227
["ID","MTS","AMOUNT","RATE_DAILY","PERIOD"]
[406840633,1772221659918,-550.93754284,7.151e-05,2]
[406840634,1772221659948,-550.93754284,7.151e-05,2]
[406840635,1772221659978,-550.93754284,7.151e-05,2]
[406840636,1772221660007,-550.93754284,7.151e-05,2]
[406840637,1772221660040,-550.93754284,7.151e-05,2]
[406840638,1772221660069,-550.93754284,7.151e-05,2]
[406840639,1772221660098,-550.93754284,7.151e-05,2]
[406840640,1772221660127,-55.20401682,7.151e-05,2]
[406840641,1772221660527,-495.73352602,7.151e-05,2]
[406840642,1772221676470,-550.93754284,7.151e-05,2]
[406840643,1772221676500,-550.93754284,7.151e-05,2]
[406840644,1772221676527,-550.93754284,7.151e-05,2]
[406840645,1772221676554,-550.93754284,7.151e-05,2]
[406840646,1772221676582,-550.93754284,7.151e-05,2]
[406840647,1772221676609,-550.93754284,7.151e-05,2]
[406840648,1772221676638,-550.93754284,7.151e-05,2]
[406840649,1772221676665,-550.93754284,7.151e-05,2]
[406840650,1772221676692,-550.93754284,7.151e-05,2]
[406840651,1772221676718,-550.93754284,7.151e-05,2]
[406840652,1772221676746,-550.93754284,7.151e-05,2]
[406840653,1772221676772,-550.93754284,7.151e-05,2]
[406840654,1772221676799,-550.93754284,7.151e-05,2]
[406840655,1772221676827,-550.93754284,7.151e-05,2]
[406840656,1772221676855,-550.93754284,7.151e-05,2]
[406840657,1772221676883,-550.93754284,7.151e-05,2]
[406840658,1772221677088,-550.93754284,7.151e-05,2]
[406840659,1772221677119,-550.93754284,7.151e-05,2]
[406840660,1772221677394,-166.24845776,7.151e-05,2]
[406840661,1772221681354,300.0,7.15e-05,2]
[406840662,1772221682780,150.0,7.15e-05,2]
[406840663,1772221683352,300.0,7.15e-05,2]
[406840665,1772221801155,300.0,7.151e-05,2]
[406840666,1772221801186,1200.0,7.151e-05,2]
[406840667,1772221823060,-211.0,7.152e-05,2]
[406840669,1772221831619,-29399.37079642,7.152e-05,2]
[406840670,1772221831631,-95185.02716956,7.152e-05,2]
[406840671,1772221831642,-153016.53488547,7.152e-05,2]
[406840672,1772221831672,-250.0,7.152e-05,2]
[406840714,1772221837680,-3490.23611741,7.152e-05,2]
[406840715,1772221837734,-2603.83148825,7.152e-05,2]
[406840716,1772221837745,-1446.4501191,7.152e-05,2]
[406840717,1772221837788,-4241.59355284,7.152e-05,2]
[406840718,1772221838001,-383648.13459784,7.152e-05,2]
[406840886,1772221839841,-519.56113632,7.152e-05,2]
[406840893,1772221839895,-443.3532173,7.152e-05,2]
[406840910,1772221840056,-25831.58278638,7.152e-05,2]
[406840916,1772221840109,-65069.90332773,7.152e-05,2]
[406840923,1772221840163,-1613.38149951,7.152e-05,2]
[406840969,1772221845638,-7868.28779845,7.152e-05,2]
[406840970,1772221845901,-654.0,7.152e-05,2]
[406840974,1772221861964,150.0,7.151e-05,2]
[406840975,1772221863211,300.0,7.151e-05,2]
[406840976,1772221877986,500.0,7.151e-05,2]
[406840977,1772221878030,500.0,7.151e-05,2]
[406840978,1772221878064,500.0,7.151e-05,2]
[406840979,1772221878098,500.0,7.151e-05,2]
[406840980,1772221878133,500.0,7.151e-05,2]
[406840981,1772221878165,500.0,7.151e-05,2]
[406840982,1772221878199,500.0,7.151e-05,2]
[406840983,1772221878232,500.0,7.151e-05,2]
[406840984,1772221878266,500.0,7.151e-05,2]
[406840985,1772221878301,500.0,7.151e-05,2]
[406840986,1772221878338,500.0,7.151e-05,2]
[406840987,1772221878371,500.0,7.151e-05,2]
[406840988,1772221878407,500.0,7.151e-05,2]
[406840989,1772221878442,500.0,7.151e-05,2]
[406840990,1772221878481,500.0,7.151e-05,2]
[406840991,1772221878528,500.0,7.151e-05,2]
[406840992,1772221878566,500.0,7.151e-05,2]
[406840993,1772221878609,500.0,7.151e-05,2]
[406840994,1772221878640,128.01,7.151e-05,2]
[406840995,1772221878663,371.99,7.151e-05,2]
[406840996,1772221878694,500.0,7.151e-05,2]
[406840997,1772221878726,500.0,7.151e-05,2]
[406840998,1772221878770,500.0,7.151e-05,2]
[406840999,1772221878813,500.0,7.151e-05,2]
[406841000,1772221878869,500.0,7.151e-05,2]
[406841001,1772221878906,500.0,7.151e-05,2]
[406841002,1772221878943,500.0,7.151e-05,2]
[406841003,1772221878978,500.0,7.151e-05,2]
[406841004,1772221879010,500.0,7.151e-05,2]
[406841005,1772221879044,500.0,7.151e-05,2]
[406841006,1772221879083,500.0,7.151e-05,2]
[406841007,1772221879118,500.0,7.151e-05,2]
[406841008,1772221879151,500.0,7.151e-05,2]
[406841009,1772221879218,500.0,7.151e-05,2]
[406841010,1772221879251,500.0,7.151e-05,2]
[406841011,1772221879330,500.0,7.151e-05,2]
[406841012,1772221879370,500.0,7.151e-05,2]
[406841013,1772221879405,500.0,7.151e-05,2]
[406841014,1772221879456,500.0,7.151e-05,2]
[406841015,1772221879507,128.02,7.151e-05,2]
[406841016,1772221879533,371.98,7.151e-05,2]
[406841017,1772221879569,584.37885557,7.151e-05,2]
[406841018,1772221879627,500.0,7.151e-05,2]
[406841019,1772221879677,500.0,7.151e-05,2]
[406841020,1772221889726,500.0,7.151e-05,2]
[406841021,1772221889760,500.0,7.151e-05,2]
[406841022,1772221889801,500.0,7.151e-05,2]
[406841023,1772221889836,500.0,7.151e-05,2]
[406841024,1772221889872,500.0,7.151e-05,2]
[406841025,1772221889907,500.0,7.151e-05,2]
[406841026,1772221889940,500.0,7.151e-05,2]
[406841027,1772221889974,500.0,7.151e-05,2]
[406841028,1772221890010,500.0,7.151e-05,2]
[406841029,1772221890042,500.0,7.151e-05,2]
[406841030,1772221890082,500.0,7.151e-05,2]
[406841031,1772221890121,500.0,7.151e-05,2]
[406841032,1772221890152,500.0,7.151e-05,2]
[406841033,1772221890191,500.0,7.151e-05,2]
[406841034,1772221890227,500.0,7.151e-05,2]
[406841035,1772221890259,500.0,7.151e-05,2]
[406841036,1772221890478,43.65114443,7.151e-05,2]
[406841037,1772221890506,456.34885557,7.151e-05,2]
[406841038,1772221890539,500.0,7.151e-05,2]
[406841039,1772221890573,500.0,7.151e-05,2]
[406841040,1772221890611,500.0,7.151e-05,2]
[406841041,1772221890644,500.0,7.151e-05,2]
[406841042,1772221890684,500.0,7.151e-05,2]
[406841043,1772221890719,500.0,7.151e-05,2]
[406841044,1772221890755,500.0,7.151e-05,2]
[406841045,1772221897521,1439.941,7.009e-05,2]
[406841046,1772221897632,185.714,7.009e-05,2]
[406841048,1772221930425,4418.00614443,7.052e-05,2]
[406841049,1772221930452,10000.01,7.052e-05,2]
[406841050,1772221930478,10000.01,7.052e-05,2]
[406841051,1772221930504,10000.01,7.052e-05,2]
[406841052,1772221937748,-7071.64391005,7.052e-05,2]
[406841053,1772221937822,-10000.01,7.052e-05,2]
[406841054,1772221937932,-10000.01,7.052e-05,2]
[406841055,1772221938058,-10000.01,7.052e-05,2]
[406841056,1772221938195,-10000.01,7.052e-05,2]
[406841057,1772221938297,-10000.01,7.052e-05,2]
[406841058,1772221938420,-10000.01,7.052e-05,2]
[406841059,1772221938538,-10000.01,7.052e-05,2]
[406841060,1772221940584,-10000.01,7.052e-05,2]
[406841061,1772221940683,-10000.01,7.052e-05,2]
[406841062,1772221942513,1062.34374872,8.708e-05,3]
[406841063,1772221943619,-10000.01,7.052e-05,2]
[406841064,1772221943712,-10000.01,7.052e-05,2]
[406841065,1772221943824,-10000.01,7.052e-05,2]
[406841066,1772221943975,-10000.01,7.052e-05,2]
[406841067,1772221944123,-10000.01,7.052e-05,2]
[406841068,1772221944287,-10000.01,7.052e-05,2]
[406841069,1772221944413,-10000.01,7.052e-05,2]
[406841070,1772221944545,-10000.01,7.052e-05,2]
[406841071,1772221946772,-10000.01,7.052e-05,2]
[406841072,1772221946985,-10000.01,7.052e-05,2]
[406841073,1772221949696,-10000.01,7.052e-05,2]
[406841074,1772221949962,-3343.10406552,6.952e-05,2]
[406841075,1772221949994,-3313.80186896,7.052e-05,2]
[406841076,1772221950112,-10000.01,7.052e-05,2]
[406841077,1772221950240,-10000.01,7.052e-05,2]
[406841078,1772221950357,-10000.01,7.052e-05,2]
[406841079,1772221950461,-10000.01,7.052e-05,2]
[406841080,1772221950756,-10000.01,7.052e-05,2]
[406841081,1772221950773,-10000.01,7.052e-05,2]
[406841082,1772221952710,-10000.01,7.052e-05,2]
[406841083,1772221952887,-10000.01,7.052e-05,2]
[406841084,1772221971315,159.35,5.706e-05,2]
[406841085,1772222133405,225.50450855,6.918e-05,14]
[406841086,1772222340675,989.63605644,6.625e-05,2]
[406841087,1772222340696,532.04394356,6.625e-05,2]
[406841088,1772222355403,222.35,6.6e-05,2]
[406841089,1772222356074,303.47,6.6e-05,2]
[406841092,1772222543225,3377.53,6.527e-05,2]
[406841093,1772222588030,994.42,6.467e-05,2]
[406841094,1772222687959,150.0,8.224e-05,5]
[406841095,1772222714450,500.0,6.417e-05,2]
[406841097,1772222742174,275.67105273,8.224e-05,5]
[406841098,1772222812287,-500.0,6.674e-05,2]
[406841099,1772222850168,500.0,6.574e-05,2]
[406841101,1772222897484,806.17,6.416e-05,2]
[406841102,1772222940603,7693.84,6.377e-05,2]
[406841103,1772222940624,5175.88,6.377e-05,2]
[406841104,1772223012920,500.0,6.574e-05,2]
[406841109,1772223031829,-253.83271447,6.674e-05,2]
[406841115,1772223031883,-537.02862553,6.674e-05,2]
[406841116,1772223031942,-519.534,6.674e-05,2]
[406841117,1772223031957,-399.5034,6.674e-05,2]
[406841118,1772223031998,-3290.10126,6.674e-05,2]
[406841120,1772223032011,-208.0,6.674e-05,2]
[406841122,1772223032021,-300.0,6.728e-05,2]
[406841124,1772223032031,-1200.0,6.728e-05,2]
[406841126,1772223032040,-5000.0,6.729e-05,2]
[406841128,1772223032049,-1151.953,6.812e-05,2]
[406841130,1772223032058,-185.714,6.812e-05,2]
[406841132,1772223032068,-150.0,6.849e-05,2]
[406841134,1772223032077,-500.0,6.849e-05,2]
[406841136,1772223032087,-78934.34881005,6.85e-05,2]
[406841137,1772223032099,-43846.29641712,6.85e-05,2]
[406841291,1772223040019,-902.65302674,6.85e-05,2]
[406841299,1772223040230,-578.02784794,6.85e-05,2]
[406841301,1772223040242,-1559.04062305,6.85e-05,2]
[406841303,1772223040253,-406.81335613,6.85e-05,2]
[406841467,1772223042861,-5300.01618405,6.85e-05,2]
[406841468,1772223043009,-528.03460139,6.85e-05,2]
[406841469,1772223043022,-290.0373289,6.85e-05,2]
[406841470,1772223043032,-54370.76304385,6.85e-05,2]
[406841517,1772223127460,-850.0,6.713e-05,2]
[406841518,1772223168367,500.0,6.574e-05,2]
[406841519,1772223203005,-71.562,6.713e-05,2]
[406841520,1772223203031,-185.714,6.713e-05,2]
[406841521,1772223203053,-400.0,6.8e-05,2]
[406841522,1772223203075,-150.0,6.849e-05,2]
[406841523,1772223203097,-300.0,6.849e-05,2]
[406841524,1772223203120,-300.0,6.849e-05,2]
[406841525,1772223203142,-227.63856865,6.849e-05,2]
[406841526,1772223203164,-623.0359357,6.849e-05,2]
[406841527,1772223203184,-500.0,6.849e-05,2]
[406841528,1772223203206,-500.0,6.849e-05,2]
[406841529,1772223203228,-500.0,6.849e-05,2]
[406841530,1772223203250,-242.04949565,6.849e-05,2]
[406841531,1772223300969,2377.5,6.454e-05,2]
[406841532,1772223334859,-1500.0,6.831e-05,2]
[406841533,1772223334890,-1532.60673339,6.831e-05,2]
[406841534,1772223349461,3934.79653322,6.75e-05,2]
[406841535,1772223349485,10000.01,6.75e-05,2]
[406841536,1772223349509,10000.01,6.75e-05,2]
[406841537,1772223349532,10000.01,6.75e-05,2]
[406841538,1772223349555,10000.01,6.75e-05,2]
[406841539,1772223349578,10000.01,6.75e-05,2]
[406841540,1772223349601,10000.01,6.75e-05,2]
[406841541,1772223349624,10000.01,6.75e-05,2]
[406841542,1772223349646,10000.01,6.75e-05,2]
[406841543,1772223349669,10000.01,6.75e-05,2]
[406841544,1772223450955,91.12211288,6.244e-05,2]
[406841545,1772223450978,1148.98605644,6.244e-05,2]
[406841546,1772223451005,1148.98605644,6.244e-05,2]
[406841547,1772223451037,1148.98605644,6.244e-05,2]
[406841548,1772223451059,1148.98605644,6.244e-05,2]
[406841549,1772223451080,1148.98605644,6.244e-05,2]
[406841550,1772223451102,1148.98605644,6.244e-05,2]
[406841551,1772223451124,1148.98605644,6.244e-05,2]
[406841552,1772223451146,1148.98605644,6.244e-05,2]
[406841553,1772223451174,765.7394356,6.244e-05,2]
[406841554,1772223615150,200.0,6.218e-05,2]
[406841555,1772223656331,-300.0,6.739e-05,2]
[406841556,1772223656358,-1200.0,6.739e-05,2]
[406841557,1772223656387,-1200.0,6.739e-05,2]
[406841558,1772223656415,-300.0,6.739e-05,2]
[406841559,1772223656442,-300.0,6.739e-05,2]
[406841560,1772223656469,-300.0,6.739e-05,2]
[406841561,1772223656495,-208.0,6.739e-05,2]
[406841562,1772223663316,300.0,6.739e-05,2]
[406841563,1772223697713,1066.756,6.615e-05,2]
[406841564,1772223697752,197.871,6.615e-05,2]
[406841565,1772223721460,300.0,6.739e-05,2]
[406841566,1772223806988,519.383,6.65e-05,2]
[406841567,1772223807015,10000.01,6.65e-05,2]
[406841568,1772223807040,10000.01,6.65e-05,2]
[406841569,1772223807065,10000.01,6.65e-05,2]
[406841570,1772223807089,10000.01,6.65e-05,2]
[406841571,1772223807112,10000.01,6.65e-05,2]
[406841572,1772223807136,10000.01,6.65e-05,2]
[406841573,1772223807160,10000.01,6.65e-05,2]
[406841574,1772223807184,10000.01,6.65e-05,2]
[406841575,1772223807208,10000.01,6.65e-05,2]
[406841576,1772223819614,-4020.91634782,6.65e-05,2]
[406841577,1772223819728,-10000.01,6.65e-05,2]
[406841578,1772223822061,-10000.01,6.65e-05,2]
[406841579,1772223822210,-10000.01,6.65e-05,2]
[406841580,1772223822390,-10000.01,6.65e-05,2]
[406841581,1772223822508,-10000.01,6.65e-05,2]
[406841582,1772223822647,-10000.01,6.65e-05,2]
[406841583,1772223822835,-10000.01,6.65e-05,2]
[406841584,1772223825027,-10000.01,6.65e-05,2]
[406841585,1772223858486,176.6,6.5e-05,2]
[406841587,1772224031522,9823.41,6.149e-05,2]
[406841588,1772224031553,9396.84,6.149e-05,2]
[406841589,1772224065472,2900.0,9e-05,3]
[406841590,1772224124238,-1601.67197816,6.55e-05,2]
[406841591,1772224124263,-398.32802184,6.55e-05,2]
[406841592,1772224165078,-1000.0,6.55e-05,2]
[406841602,1772224213713,264.92,6.5e-05,2]
[406841605,1772224231985,-207.0,6.55e-05,2]
[406841606,1772224231995,-1399.2675858,6.55e-05,2]
[406841607,1772224232005,-193.7324142,6.595e-05,2]
[406841608,1772224232017,-712.57717035,6.595e-05,2]
[406841609,1772224232042,-646.21,6.595e-05,2]
[406841610,1772224232054,-1621.2823858,6.595e-05,2]
[406841611,1772224232101,-1826.19802965,6.595e-05,2]
[406841612,1772224232112,-1200.0,6.626e-05,2]
[406841613,1772224232124,-300.0,6.626e-05,2]
[406841614,1772224232134,-5000.0,6.627e-05,2]
[406841615,1772224232148,-150.0,6.639e-05,2]
[406841616,1772224232163,-52775.85608018,6.64e-05,2]
[406841617,1772224232173,-500.0,6.64e-05,2]
[406841618,1772224232185,-151.0,6.647e-05,2]
[406841619,1772224232203,-500.0,6.649e-05,2]
[406841620,1772224232215,-257.10497418,6.649e-05,2]
[406841621,1772224232225,-288.25179148,6.649e-05,2]
[406841622,1772224232235,-500.0,6.649e-05,2]
[406841623,1772224232245,-500.0,6.649e-05,2]
[406841624,1772224232254,-500.0,6.649e-05,2]
[406841625,1772224232264,-500.0,6.649e-05,2]
[406841626,1772224232273,-500.0,6.649e-05,2]
[406841627,1772224232283,-500.0,6.649e-05,2]
[406841628,1772224232292,-500.0,6.649e-05,2]
[406841629,1772224232302,-500.0,6.649e-05,2]
[406841630,1772224232311,-500.0,6.649e-05,2]
[406841631,1772224232320,-500.0,6.649e-05,2]
[406841632,1772224232330,-500.0,6.649e-05,2]
[406841633,1772224232339,-500.0,6.649e-05,2]
[406841634,1772224232348,-500.0,6.649e-05,2]
[406841635,1772224232357,-500.0,6.649e-05,2]
[406841636,1772224232367,-500.0,6.649e-05,2]
[406841637,1772224232376,-226.41479825,6.649e-05,2]
[406841638,1772224232386,-500.0,6.649e-05,2]
[406841639,1772224232395,-500.0,6.649e-05,2]
[406841640,1772224232405,-500.0,6.649e-05,2]
[406841641,1772224232414,-500.0,6.649e-05,2]
[406841642,1772224232424,-500.0,6.649e-05,2]
[406841643,1772224232433,-500.0,6.649e-05,2]
[406841644,1772224232443,-500.0,6.649e-05,2]
[406841645,1772224232452,-500.0,6.649e-05,2]
[406841646,1772224232461,-500.0,6.649e-05,2]
[406841647,1772224232471,-500.0,6.649e-05,2]
[406841648,1772224232480,-500.0,6.649e-05,2]
[406841649,1772224232489,-500.0,6.649e-05,2]
[406841650,1772224232507,-500.0,6.649e-05,2]
[406841651,1772224232519,-500.0,6.649e-05,2]
[406841652,1772224232529,-500.0,6.649e-05,2]
[406841653,1772224232538,-500.0,6.649e-05,2]
[406841654,1772224232548,-500.0,6.649e-05,2]
[406841655,1772224232558,-500.0,6.649e-05,2]
[406841656,1772224232568,-500.0,6.649e-05,2]
[406841657,1772224232578,-500.0,6.649e-05,2]
[406841658,1772224232588,-500.0,6.649e-05,2]
[406841659,1772224232597,-500.0,6.649e-05,2]
[406841660,1772224232606,-500.0,6.649e-05,2]
[406841661,1772224232616,-500.0,6.649e-05,2]
[406841662,1772224232625,-500.0,6.649e-05,2]
[406841663,1772224232634,-500.0,6.649e-05,2]
[406841664,1772224232643,-257.48686355,6.649e-05,2]
[406841665,1772224232653,-500.0,6.649e-05,2]
[406841666,1772224232663,-500.0,6.649e-05,2]
[406841667,1772224232673,-500.0,6.649e-05,2]
[406841668,1772224232682,-500.0,6.649e-05,2]
[406841669,1772224232692,-500.0,6.649e-05,2]
[406841670,1772224232701,-500.0,6.649e-05,2]
[406841671,1772224232711,-500.0,6.649e-05,2]
[406841672,1772224232720,-500.0,6.649e-05,2]
[406841673,1772224232729,-500.0,6.649e-05,2]
[406841674,1772224232739,-500.0,6.649e-05,2]
[406841675,1772224232748,-250.00000001,6.649e-05,2]
[406841676,1772224232758,-500.0,6.649e-05,2]
[406841677,1772224232767,-500.0,6.649e-05,2]
[406841678,1772224232777,-500.0,6.649e-05,2]
[406841679,1772224232786,-500.0,6.649e-05,2]
[406841680,1772224232795,-500.0,6.649e-05,2]
[406841681,1772224232805,-500.0,6.649e-05,2]
[406841682,1772224232814,-500.0,6.649e-05,2]
[406841683,1772224232823,-500.0,6.649e-05,2]
[406841684,1772224232833,-500.0,6.649e-05,2]
[406841685,1772224232843,-37088.03200438,6.65e-05,2]
[406841686,1772224232856,-220015.42716208,6.65e-05,2]
[406841687,1772224232867,-1254.41808677,6.65e-05,2]
[406841688,1772224232878,-379.77992807,6.65e-05,2]
[406841689,1772224232889,-3574.01007193,6.65e-05,2]
[406841690,1772224232899,-981.08948371,6.65e-05,2]
[406841691,1772224232910,-1024.07488528,6.65e-05,2]
[406841692,1772224232924,-4129.58029272,6.65e-05,2]
[406841706,1772224238239,-1905.05167747,6.65e-05,2]
[406841776,1772224240467,-286.21216497,6.65e-05,2]
[406841777,1772224240479,-328.365,6.65e-05,2]
[406841778,1772224240795,-1554493.4898948,6.65e-05,2]
[406841779,1772224240805,-1486.48,6.749e-05,2]
[406841780,1772224240814,-4473.28693123,6.749e-05,2]
[406841781,1772224240829,-1852.42,6.777e-05,2]
[406841782,1772224240850,-311790.6136951,6.785e-05,2]
[406841783,1772224240866,-700.0,6.8e-05,2]
[406841784,1772224240876,-151.0,6.846e-05,2]
[406841785,1772224241070,-159.34699806,6.848e-05,2]
[406841786,1772224241081,-500.0,6.848e-05,2]
[406841787,1772224241091,-248.39694155,6.848e-05,2]
[406841788,1772224241100,-1000.0,6.848e-05,2]
[406841789,1772224241110,-9999.99,6.849e-05,2]
[406841790,1772224241123,-150.99,6.849e-05,2]
[406841791,1772224241132,-999.99,6.849e-05,2]
[406841792,1772224241142,-150.99,6.849e-05,2]
[406841793,1772224241152,-4312.84,6.849e-05,2]
[406841794,1772224241162,-299.99,6.849e-05,2]
[406841795,1772224241171,-9999.99,6.849e-05,2]
[406841796,1772224241181,-9999.99,6.849e-05,2]
[406841797,1772224241193,-1000.0,6.849e-05,2]
[406841798,1772224241203,-1000.0,6.85e-05,2]
[406841799,1772224241212,-1000.0,6.85e-05,2]
[406841800,1772224241222,-1000.0,6.85e-05,2]
[406841801,1772224241232,-1000.0,6.85e-05,2]
[406841802,1772224241241,-612.14922787,6.85e-05,2]
[406841803,1772224241251,-1678.0,6.877e-05,2]
[406841804,1772224241260,-28492.0,6.877e-05,2]
[406841805,1772224241269,-1400.0,6.9e-05,2]
[406841806,1772224241279,-1990.0,6.932e-05,2]
[406841807,1772224241288,-3718.0,6.932e-05,2]
[406841808,1772224241298,-190.47360615,6.956e-05,2]
[406841809,1772224241308,-293.0,6.957e-05,2]
[406841810,1772224241317,-148073.0,6.959e-05,2]
[406841811,1772224241326,-279.361092,6.959e-05,2]
[406841812,1772224241336,-279.361092,6.959e-05,2]
[406841813,1772224241345,-279.361092,6.959e-05,2]
[406841814,1772224241355,-279.361092,6.959e-05,2]
[406841815,1772224241364,-255.150202,6.959e-05,2]
[406841816,1772224241373,-255.150202,6.959e-05,2]
[406841817,1772224241383,-255.150202,6.959e-05,2]
[406841818,1772224241392,-255.150202,6.959e-05,2]
[406841819,1772224241402,-151.0,6.959e-05,2]
[406841820,1772224241411,-98639.54885863,7e-05,2]
[406841821,1772224241421,-2200.0,7e-05,2]
[406841822,1772224241431,-1486.48,7.023e-05,2]
[406841823,1772224241443,-772.95,7.038e-05,2]
[406841824,1772224241452,-151.0,7.124e-05,2]
[406841825,1772224241461,-151.0,7.124e-05,2]
[406841826,1772224241471,-159.35,7.132e-05,2]
[406841827,1772224241480,-250.0,7.193e-05,2]
[406841828,1772224241490,-300.31663406,7.205e-05,2]
[406841829,1772224241499,-5000.0,7.205e-05,2]
[406841830,1772224241508,-250.0,7.205e-05,2]
[406841831,1772224241518,-5000.0,7.205e-05,2]
[406841832,1772224241528,-204.77558147,7.205e-05,2]
[406841833,1772224241537,-250.0,7.205e-05,2]
[406841834,1772224241547,-5000.0,7.205e-05,2]
[406841835,1772224241556,-193.0,7.205e-05,2]
[406841836,1772224241565,-806.17,7.218e-05,2]
[406841837,1772224241575,-1680.0,7.288e-05,2]
[406841838,1772224241584,-420.0,7.288e-05,2]
[406841839,1772224241594,-1486.48,7.297e-05,2]
[406841840,1772224241604,-255.0,7.303e-05,2]
[406841841,1772224241613,-151.0,7.314e-05,2]
[406841842,1772224241623,-279.361092,7.317e-05,2]
[406841843,1772224241632,-279.361092,7.317e-05,2]
[406841844,1772224241641,-279.361092,7.317e-05,2]
[406841845,1772224241651,-279.361092,7.317e-05,2]
[406841846,1772224241660,-255.150202,7.317e-05,2]
[406841847,1772224241670,-255.150202,7.317e-05,2]
[406841848,1772224241680,-255.150202,7.317e-05,2]
[406841849,1772224241690,-255.150202,7.317e-05,2]
[406841850,1772224241699,-266.38,7.527e-05,2]
[406841851,1772224241708,-1486.48,7.571e-05,2]
[406841852,1772224241717,-166.66,7.577e-05,2]
[406841853,1772224241727,-151.0,7.671e-05,2]
[406841854,1772224241735,-151.0,7.671e-05,2]
[406841855,1772224241745,-8946.99363948,7.671e-05,2]
[406841856,1772224241754,-152.62086832,7.671e-05,2]
[406841857,1772224241763,-31067.91,7.671e-05,2]
[406841858,1772224241773,-500.0,7.671e-05,2]
[406841859,1772224241782,-4265.01,7.739e-05,2]
[406841860,1772224241792,-518.0,7.753e-05,2]
[406841861,1772224241801,-69569.8895665,7.755e-05,2]
[406841862,1772224241811,-500.0,7.808e-05,2]
[406841863,1772224241821,-166.66,7.827e-05,2]
[406841864,1772224241831,-1486.48,7.845e-05,2]
[406841865,1772224241840,-1000.0,7.896e-05,2]
[406841866,1772224241849,-1000.0,7.924e-05,2]
[406841867,1772224241859,-15523.1406004,7.972e-05,2]
[406841868,1772224241869,-500.0,8e-05,2]
[406841869,1772224241878,-2351.0,8.017e-05,2]
[406841870,1772224241889,-587.0,8.017e-05,2]
[406841871,1772224241900,-806.17,8.02e-05,2]
[406841872,1772224241909,-433.0,8.033e-05,2]
[406841873,1772224241919,-4265.01,8.072e-05,2]
[406841874,1772224241930,-166.66,8.077e-05,2]
[406841875,1772224241939,-1486.48,8.119e-05,2]
[406841876,1772224241948,-151.0,8.15e-05,2]
[406841877,1772224241957,-279.361092,8.15e-05,2]
[406841878,1772224241967,-279.361092,8.15e-05,2]
[406841879,1772224241979,-279.361092,8.15e-05,2]
[406841880,1772224241990,-279.361092,8.15e-05,2]
[406841881,1772224241999,-255.150202,8.15e-05,2]
[406841882,1772224242009,-255.150202,8.15e-05,2]
[406841883,1772224242018,-255.150202,8.15e-05,2]
[406841884,1772224242030,-255.150202,8.15e-05,2]
[406841885,1772224242039,-151.0,8.15e-05,2]
[406841886,1772224242048,-1242.537912,8.178e-05,2]
[406841887,1772224242058,-500.0,8.2e-05,2]
[406841888,1772224242068,-500.0,8.219e-05,2]
[406841889,1772224242078,-500.0,8.219e-05,2]
[406841890,1772224242088,-500.0,8.219e-05,2]
[406841891,1772224242098,-500.0,8.219e-05,2]
[406841892,1772224242108,-468.0,8.219e-05,2]
[406841893,1772224242122,-500.0,8.219e-05,2]
[406841894,1772224242131,-150.0,8.219e-05,2]
[406841895,1772224242140,-150.0,8.219e-05,2]
[406841896,1772224242149,-500.0,8.219e-05,2]
[406841897,1772224242160,-469.7816296,8.219e-05,2]
[406841898,1772224242170,-205.97279745,8.219e-05,2]
[406841899,1772224242183,-150.0,8.219e-05,2]
[406841900,1772224242193,-150.0,8.219e-05,2]
[406841901,1772224242203,-500.0,8.219e-05,2]
[406841902,1772224242212,-500.0,8.219e-05,2]
[406841903,1772224242222,-500.0,8.219e-05,2]
[406841904,1772224242232,-150.0,8.219e-05,2]
[406841905,1772224242240,-338.144608,8.219e-05,2]
[406841906,1772224242250,-8407.31,8.219e-05,2]
[406841907,1772224242259,-1000.0,8.219e-05,2]
[406841908,1772224242268,-191.32,8.219e-05,2]
[406841909,1772224242277,-151.0,8.219e-05,2]
[406841910,1772224242287,-151.0,8.219e-05,2]
[406841911,1772224242296,-151.0,8.219e-05,2]